Cogmind - Beta 13 @@@ ROGUE MODE // 2024.04.05 @ 22:13:22 Player: Ragonath Result: Destroyed by G-34 Mercenary with Small Laser Performance ------------- Evolutions (1) 500 Regions Visited (2) 400 Robots Destroyed (38) 190 Value Destroyed (1065) 1065 Prototype IDs (1) 20 Alien Tech Used (0) 0 Bonus (0) 0 TOTAL SCORE: 2175 Bonus ------- None Cogmind --------- Core Integrity 0/400 Matter 300/300 Energy 280/280 System Corruption 0% Temperature Cool (6) Movement Core (500) Ox9 Location -9/Materials Parts ------- > --- POWER (1) -------- Heavy Ion Engine > --- PROPULSION (2) --- (None) > --- UTILITY (4) ------ Large Storage Unit Visual Processing Unit > --- WEAPON (2) ------- Flail > --- INVENTORY (15) --- Light Ion Engine Wheel Compact Wheel Small Storage Unit Medium Battery (150) Visual Processing Unit Assault Rifle Assault Rifle Heavy Assault Rifle Light Cannon Light Cannon Light Cannon Light Cannon Peak State ------------ > --- POWER ------------ Heavy Ion Engine > --- PROPULSION ------- Light Treads Light Treads > --- UTILITY ---------- Large Storage Unit Visual Processing Unit ECM Suite Core Shielding > --- WEAPON ----------- Improved Light Cannon Flail > --- INVENTORY -------- Light Ion Engine Light Treads Wheel Compact Wheel Small Storage Unit Medium Battery Visual Processing Unit Assault Rifle Assault Rifle Heavy Assault Rifle Light Cannon Light Cannon Light Cannon Light Cannon [Rating: 15] Favorites ----------- Power Light Ion Engine Engine Light Ion Engine Propulsion Light Treads Treads Light Treads Utility Large Storage Unit Device Terrain Scanner Storage Large Storage Unit Processor Visual Processing Unit Protection Core Shielding Weapon Assault Rifle Ballistic Gun Assault Rifle Ballistic Cannon Light Cannon Special Weapon Welding Torch Impact Weapon Flail Build | -11 -10 -9 ------- Run | Yrd Mat Mat Slots Evolved 2 | . . 2 Power . | . . . Propulsion . | . . . Utility 2 | . . 2 Weapon . | . . . Parts Attached 28 | 6 3 19 Power 5 | 1 1 3 Engine 5 | 1 1 3 Core . | . . . Reactor . | . . . Propulsion 6 | 2 . 4 Treads 6 | 2 . 4 Leg . | . . . Wheel . | . . . Hover . | . . . Flight . | . . . Utility 9 | 1 2 6 Device 3 | . 1 2 Storage 3 | 1 1 1 Processor 1 | . . 1 Hackware . | . . . Protection 2 | . . 2 Artifact . | . . . Weapon 8 | 2 . 6 Energy Gun . | . . . Energy Cannon . | . . . Ballistic Gun 3 | 2 . 1 Ballistic Cannon 3 | . . 3 Launcher . | . . . Special Weapon 1 | . . 1 Impact Weapon 1 | . . 1 Slashing Weapon . | . . . Piercing Weapon . | . . . Special Melee Weapon . | . . . Unidentified Prototypes 1 | . . 1 Parts Lost 13 | . 1 12 Power 2 | . 1 1 Propulsion 4 | . . 4 Utility 5 | . . 5 Weapon 2 | . . 2 Highest Loss Streak 3 | . 1 3 To Critical Strikes . | . . . Average Slot Usage (%) 89 | . 89 88 Engine 9 | . 8 10 Treads 21 | . 28 18 Device 10 | . 10 10 Storage 12 | . 14 11 Processor 3 | . . 5 Protection 9 | . . 13 Ballistic Gun 9 | . 28 . Ballistic Cannon 7 | . . 10 Impact Weapon 4 | . . 6 Naked Turns . | . . . Heaviest Build 37 | 14 30 37 Greatest Support 40 | 40 40 40 Greatest Overweight (x) 10 | . . 10 Average Overweight (x) . | . . . Largest Inventory Capacity 15 | 8 15 15 Average Capacity 14 | 7 14 15 Most Carried 15 | 5 9 15 Average Carried 9 | 3 5 12 Final Capacity 15 | 8 15 15 Final Carried 13 | 3 8 13 Class Distribution -------------------- 98% | Mutant Dominant Class ---------------- Mutant | -10/Materials Mutant | -9/Materials Resources | -11 -10 -9 ----------- Run | Yrd Mat Mat Matter Collected 1006 | 202 367 437 Remotely . | . . . Salvage Created 1222 | . 426 796 Parts 64 | . 29 35 Haulers Intercepted 2 | . . 2 Recyclers Shooed . | . . . Parts Field Recycled . | . . . Retrieved Matter . | . . . Parts Self-Destructed . | . . . Prevented . | . . . Kills | -11 -10 -9 ------- Run | Yrd Mat Mat Combat Hostiles Destroyed 27 | . 11 16 Melee 6 | . . 6 Guns 12 | . 11 1 Cannons 4 | . . 4 Classes Destroyed 8 | . 4 4 Worker 3 | . 1 2 Hauler 2 | . . 2 Recycler 1 | . . 1 Watcher 5 | . 1 4 Swarmer 3 | . 3 . Grunt 18 | . 8 10 Brawler 1 | . . 1 Sentry 5 | . . 5 Best Kill Streak 4 | . 4 3 Combat Bots Only 4 | . 4 3 Max Kills in Single Turn 2 | . 2 1 Gunslinging . | . . . Exploded . | . . . Melee 1 | . . 1 Uniques/NPCs Destroyed . | . . . Combat | -11 -10 -9 -------- Run | Yrd Mat Mat Hostile Shots Fired 231 | . 64 167 Missed 51 | . 12 39 Damage Taken 2174 | . 554 1620 Core 480 | . 73 407 Absorbed by Shields . | . . . Redirected to Shielding 50 | . . 50 Regen/Repaired (Parts) 134 | . . 134 Core Remaining (%) 85 | 100 70 . Volleys Fired 87 | . 52 35 Largest 2 | . 2 2 Hottest 74 | . 40 74 Shots Fired 170 | . 104 66 Gun 106 | . 104 2 Cannon 62 | . . 62 Launcher . | . . . Special 2 | . . 2 Kinetic 168 | . 104 64 Thermal 2 | . . 2 Explosive . | . . . Electromagnetic . | . . . Robot Hit Streak 6 | . 6 4 Robot Miss Streak 6 | . 3 6 Penetration Max . | . . . Secondary Targets 1 | . 1 . Max Gunslinging Chain 1 | . 1 . Shots Hit Robots 114 | . 52 62 Core Hits 38 | . 22 16 Critical Kills 1 | . 1 . Critical Parts Destroyed 10 | . 1 9 Critical Strikes 11 | . 2 9 Destroy 2 | . 2 . Smash 9 | . . 9 Melee Attacks 50 | . . 50 Impact 50 | . . 50 Slashing . | . . . Piercing . | . . . Sneak Attacks 2 | . . 2 Combat Hostiles 1 | . . 1 Follow-up Attacks . | . . . Damage Inflicted 2622 | . 704 1918 Guns 722 | . 691 31 Cannons 489 | . . 489 Explosions . | . . . Melee 1383 | . . 1383 Ramming 22 | . 13 9 Kinetic 1211 | . 691 520 Thermal 6 | . . 6 Explosive . | . . . Electromagnetic . | . . . Impact 1383 | . . 1383 Slashing . | . . . Piercing . | . . . Highest Corruption . | . . . Average Corruption . | . . . Corruption Purged . | . . . Corruption Blocked . | . . . Overload Shots . | . . . Overflow Damage 463 | . . 463 Projectiles 5 | . . 5 Explosions . | . . . Melee 458 | . . 458 Knockbacks 20 | . 1 19 Impact 10 | . 1 9 Kinetic 8 | . . 8 Secondary 2 | . . 2 Self-Inflicted Damage . | . . . Shots . | . . . Rammed 3 | . 1 2 Targets Rammed 4 | . 1 3 Kicked . | . . . Crushed 1 | . . 1 Highest Temperature 234 | . 3 234 Average Temperature 60 | . 2 64 Received Heat Transfer 972 | . 222 750 Siege Activations . | . . . Robots Corrupted . | . . . Combat Hostiles . | . . . Parts Fried 6 | . . 6 Impact Corruptions 17 | . . 17 Robots Melted . | . . . Combat Hostiles . | . . . Parts Melted . | . . . Heat Transferred 50 | . . 50 Parts Sabotaged . | . . . Parts Stolen . | . . . Parts Stripped . | . . . Power Chain Reactions . | . . . Alert | -11 -10 -9 ------- Run | Yrd Mat Mat Peak Influence 237 | . 237 170 Initial 3 | . . 3 Average 74 | . 95 68 Maximum Alert Level 1 | . 1 . Low Security (%) 98 | 100 94 100 Level 1 1 | . 5 . Level 2 . | . . . Level 3 . | . . . Level 4 . | . . . Level 5 . | . . . High Security . | . . . Max Security . | . . . Squads Dispatched 7 | . 4 3 Investigation 5 | . 2 3 Extermination . | . . . Reinforcement 2 | . 2 . Assault . | . . . Garrison . | . . . Intercept . | . . . Searches Triggered . | . . . Construction Impeded . | . . . Haulers Reinforced . | . . . Active Scanning Responses . | . . . Cargo Convoy Interrupts . | . . . Stealth | -11 -10 -9 --------- Run | Yrd Mat Mat Distress Signals 4 | . . 4 Communications Jammed . | . . . Distress Signals . | . . . Times Spotted 43 | . 16 27 Peak Tracking Total 4 | . 4 3 Tactical Retreats 2 | . . 2 Traps | -11 -10 -9 ------- Run | Yrd Mat Mat Traps Triggered 4 | . 1 3 Indirectly . | . . . Trap Hack Attempts . | . . . Triggered . | . . . Disarmed . | . . . Reprogrammed . | . . . Reused . | . . . Traps Extracted . | . . . Installed . | . . . Triggered . | . . . Machines | -11 -10 -9 ---------- Run | Yrd Mat Mat Machines Disabled 3 | . 1 2 Max in Single Turn 1 | . 1 1 Machines Repaired . | . . . Machines Dismantled . | . . . Machines Sabotaged . | . . . Overloaded Fab Kills . | . . . Hacking | -11 -10 -9 --------- Run | Yrd Mat Mat Machines Accessed 4 | . 1 3 Terminals 2 | . 1 1 Fabricators . | . . . Repair Stations 1 | . . 1 Recycling Units . | . . . Scanalyzers 1 | . . 1 Garrison Access . | . . . Total Hacks 14 | . 2 12 Successful 9 | . . 9 Failed 5 | . 2 3 Catastrophic 3 | . 2 1 Database Lockouts . | . . . Manual . | . . . Terminals 5 | . 2 3 Fabricators . | . . . Repair Stations 4 | . . 4 Recycling Units . | . . . Scanalyzers 5 | . . 5 Garrison Access . | . . . Terminal Hacks 3 | . . 3 Robot Analysis 1 | . . 1 Alert Level 2 | . . 2 Fabricator Hacks . | . . . Repair Station Hacks 2 | . . 2 Scan Component 1 | . . 1 Repair 1 | . . 1 Recycling Unit Hacks . | . . . Scanalyzer 4 | . . 4 Insert Component 2 | . . 2 Analyze 2 | . . 2 Garrison Access Hacks . | . . . Unauthorized Hacks . | . . . Terminals . | . . . Fabricators . | . . . Repair Stations . | . . . Recycling Units . | . . . Scanalyzers . | . . . Garrison Access . | . . . Data Cores Recovered . | . . . Used . | . . . Hacking Detections 4 | . 1 3 Full Trace Events 4 | . 1 3 Feedback Events . | . . . Feedback Blocked . | . . . Robot Schematics Acquired . | . . . Robots Built . | . . . Authchips . | . . . Time . | . . . Total Robot Build Rating . | . . . Part Schematics Acquired 1 | . . 1 Parts Built . | . . . Authchips . | . . . Time . | . . . Total Part Build Rating . | . . . Parts Repaired 1 | . . 1 Time 13 | . . 13 Parts Recycled . | . . . Recycled Matter . | . . . Retrieved Matter . | . . . Retrieved Components . | . . . Parts Scanalyzed 2 | . . 2 Part Schematics Acquired 1 | . . 1 Parts Damaged . | . . . Bothacking | -11 -10 -9 ------------ Run | Yrd Mat Mat Used RIF Installer . | . . . Robots Hacked . | . . . Non-combat . | . . . Combat . | . . . Robot Hacks Applied . | . . . Relay Couplers Released . | . . . Fabnet Peak Effective % . | . . . Robots Rewired . | . . . Allies Hacked . | . . . Hacks Repelled . | . . . Allies | -11 -10 -9 -------- Run | Yrd Mat Mat Total Allies . | . . . Largest Group . | . . . Highest-Rated Group . | . . . Highest-Rated Ally . | . . . Total Orders . | . . . Ally Attacks . | . . . Total Damage . | . . . Kills . | . . . Allies Corrupted . | . . . Allies Melted . | . . . Intel | -11 -10 -9 ------- Run | Yrd Mat Mat Robot Analysis Total 1 | . . 1 Derelict Logs Recovered . | . . . Drone Launches . | . . . Drone Recoveries . | . . . Exploration | -11 -10 -9 ------------- Run | Yrd Mat Mat Turns Passed 2569 | 112 825 1632 Spaces Moved 1222 | 64 411 747 Core 11 | 7 . 4 Treads 1211 | 57 411 743 Legs . | . . . Wheels . | . . . Hover . | . . . Flight . | . . . Fastest Speed 50 | 50 160 160 Average Speed 173 | 147 160 182 Slowest Speed 550 | 160 160 550 Overloaded Moves . | . . . Propulsion Burnouts . | . . . Robots Hopped . | . . . Cave-ins Triggered . | . . . Exploration Rate (%) 43 | 5 77 49 Regions Visited 2 Branch Regions . Pre-discovered Areas . | . . . Known Exits Taken . | . . . Unknown Exits Taken 2 | 1 1 . Scrap Searched . | . . . Spaces Dug . | . . . Terrain Destroyed 1 | . . 1 Melee . | . . . Projectile 1 | . . 1 AOE . | . . . Terrain Rammed . | . . . Walls Destroyed . | . . . Machines Disabled . | . . . Actions | -11 -10 -9 --------- Run | Yrd Mat Mat Total 1424 | 81 473 870 Wait 3 | 3 . . Move 1220 | 63 410 747 Hop . | . . . Pick Up 30 | 9 7 14 Fast Attach . | . . . Attach 19 | 6 2 11 Detach 1 | . . 1 Swap 9 | . 1 8 Drop 1 | . . 1 Fire 87 | . 52 35 Melee 50 | . . 50 Ram . | . . . Kick . | . . . Crush 4 | . 1 3 Escape Stasis . | . . . Rewire . | . . . Trap . | . . . Miscellaneous . | . . . Route ------- -11/Scrapyard -10/Materials (discovered 3 exits: *Mat x2 / [*Min]) -9/Materials (discovered 1 exit: [*Mat]) History --------- Turn | Location | Event 40 | -11/Scrapyard | Discovered new exit (range 15) 113 | -11/Scrapyard | Entered Materials 307 | -10/Materials | Build established: Mutant 416 | -10/Materials | Discovered new exit (range 8) 622 | -10/Materials | Discovered new exit (range 15) 869 | -10/Materials | Discovered new exit (range 15) 938 | -10/Materials | Entered another Materials area 938 | -9/Materials | Evolved 2 slots: Utility x2 2166 | -9/Materials | Discovered new exit (range 12) 2235 | -9/Materials | Repaired Lgt. Treads? 2378 | -9/Materials | Core integrity fell below 50% 2563 | -9/Materials | Core integrity fell below 20% 2570 | -9/Materials | Destroyed by G-34 Mercenary with Small Laser Last Messages --------------- They are also capable of hacking and repurposing errant derelicts, but faced with an armed threat will instead call for reinforcements, lock their terminal to protect it, and attempt to escape before their unique data core can be poached by hostiles. O-16 Technicians are not built for combat, thus their sensitive systems are especially susceptible to electromagnetic damage. >>Alert(Check) Current Alert Level: Low Security >>Alert(Check) Current Alert Level: Low Security ALERT: Suspicious activity at Terminal M008. Dispatching Investigation squad. K-01 Serf cleans the Atomic Centrifuge. Lgt. Treads destroyed. Core Shielding destroyed. G-34 Mercenary knocked back. Sensor Array destroyed. Map ----- +----------------------------------------------------+ | ?###+##########????# #???? | | ???????????????????# #???? | | ???????????????#???######+####???? | | ??? ???????#????????????#*#??????? | | ???? ???????????????????# #??????? | | ????????????????????????#%#?###### | | ???????????########?????# #?# # | | ???????????# ####### ### # | | ???????????# """ ## # !** # [ # | | ???????????# "T" ##### # # | | ???????????# + + # | | ???????????# # # # | | ????######## #^ # # | | ????# ######## T # # | | ????# #??# # "" # # | | ????#"S #??# # ###### | | ????#""" #??# # #????? | | ????# "" #??# " # #????? | | ????# #??# T # #????? | | ????######+#### " # """ #????? | | ???????# ## # """ #????? | | ???????# ###+##^ ^ """ #????? | | ???????# #????? | | ???????# ### #????? | | ???????# #?# * gg g#????? | | ???#######+###?# %[ =@ #????? | | #??# """ #?# #######% #????? | | ???# "T" ] ### ###???# #????? | | ???# # ##### ###????? | | ???# """" # # #??????? | | ???# """" %+ #! !#??????? | | ???# """" # ##!!!!##??????? | | ???# # #######???????? | | ?### ]## ##?????????????? | | ## ############ #????########??? | | # #????# #????# #??? | | # ! """" #????# #????# """ !#??? | | #!%["""" ###### ###### """ #??? | | # [ """" # # """ #??? | | # + %#[ #??? | | # """" # [%+!= #??? | | # """" #+######### *########??? | | # """" # # # #??? | | # # # #* [#??? | | ########## """ """ + # #??? | | ?????????# """ """ # + """ #??? | | ???#?????# """ """ # # """ #??? | | ?????????# # # """ #??? | | ?????????# # ########??? | | ?????????# # # """ #??? | +----------------------------------------------------+ Best States ------------- Heat Dissipation 28 Energy Generation 14 Energy Capacity 280 Matter Stores 300 Matter Capacity 300 Sight Range 18 Robot Scan Range 14 Terrain Scan Range 14 Terrain Scan Density 10 ECM Strength 1 Armor Coverage 150 Core Shielding 20 Evasion (%) 40 Recoil Reduction 2 Item Schematics ----------------- Lgt. Treads | -9/Materials | Scanalyzed Robot Schematics ------------------ None Fabricated ------------ Nothing Alien Tech Used ----------------- None Achievements -------------- Risk Taker Challenges ------------ None Game ------ Seed StasisDeliveryFlamer Manual? 0 Play Time 00:31:45 Cumulative 2.4 hours Start 2024.04.04 @ 16:32:07 End 2024.04.05 @ 22:13:22 Sessions 1 Manual Loads 0 Difficulty Rogue Special Mode None Game No. 6 Rogue 6 Adventurer 0 Explorer 0 Win Type - Total 0 Types 0/0/0/0/0/0/0/0/0 Lore% 2 Gallery% 5 Achievement% 4 Wizard Run 0 Options --------- Layout 1 ASCII 0 Keyboard 0 Movement Mouse Keybinds 0 Fullscreen 1 Font 32/SmallcapsGlow Map View 50x35 Zoom Use 0% Tactical HUD 0 Map Filters NONE Filters NONE Steam 1 RUN: 71254385-3827-4f34-b24c-362375453844